bitfinex/quotes_BTCUSD_20250114
["timestamp","ask_amount","ask_price","bid_price","bid_amount"]
[1736880155679,0.13868839,96873.0,96872.0,0.00193993]
[1736880156277,0.14480839,96873.0,96872.0,0.00193993]
[1736880156684,0.13680839,96873.0,96872.0,0.00193993]
[1736880156879,0.14480839,96873.0,96872.0,0.00193993]
[1736880157259,0.18576861,96873.0,96872.0,0.00193993]
[1736880157473,0.14480839,96873.0,96872.0,0.00193993]
[1736880159401,0.29480839,96873.0,96872.0,0.00193993]
[1736880159576,0.27862118,96873.0,96872.0,0.00193993]
[1736880162922,0.12250118,96873.0,96872.0,0.00193993]
[1736880163140,0.01827426,96873.0,96872.0,0.12683993]
[1736880164098,0.01427426,96873.0,96872.0,0.12683993]
[1736880164311,0.00827426,96873.0,96872.0,0.12683993]
[1736880164514,0.00927426,96873.0,96872.0,0.12683993]
[1736880164710,0.00627426,96873.0,96872.0,0.12683993]
[1736880165132,0.001,96873.0,96872.0,0.12683993]
[1736880165348,0.00742108,96873.0,96872.0,0.12683993]
[1736880166465,0.00642108,96873.0,96872.0,0.12683993]
[1736880166708,0.01142108,96873.0,96872.0,0.12683993]
[1736880166976,0.00741814,96873.0,96872.0,0.12683993]
[1736880167209,0.00741814,96873.0,96872.0,0.16207806]
[1736880167449,0.29896153,96892.0,96880.0,0.206439]
[1736880167706,0.09254553,96892.0,96877.0,0.1222]
[1736880167950,0.00656432,96886.0,96885.0,0.1222]
[1736880168646,0.2064,96900.0,96885.0,0.1222]
[1736880168890,0.206407,96896.0,96886.0,0.206428]
[1736880169629,0.206407,96896.0,96885.0,0.1222]
[1736880169630,0.412814,96896.0,96885.0,0.1222]
[1736880169863,0.206407,96896.0,96885.0,0.1222]
[1736880170070,0.0018534,96887.0,96886.0,0.206428]
[1736880170413,0.0008534,96887.0,96886.0,0.206428]
[1736880170671,0.0008534,96887.0,96886.0,0.209428]
[1736880170895,0.0008534,96887.0,96886.0,0.003]
[1736880171310,0.0018534,96887.0,96885.0,0.1222]
[1736880171618,0.0008534,96887.0,96885.0,0.1222]
[1736880171827,0.0008534,96887.0,96886.0,0.001]
[1736880172026,0.02166597,96887.0,96886.0,0.001]
[1736880172287,0.02717584,96887.0,96886.0,0.001]
[1736880172961,0.02717584,96887.0,96885.0,0.1222]
[1736880173375,0.02717584,96887.0,96886.0,0.001]
[1736880173713,0.00636327,96887.0,96885.0,0.1222]
[1736880173912,0.00936327,96887.0,96885.0,0.1222]
[1736880174266,0.206428,96886.0,96885.0,0.1222]
[1736880174686,0.21193846,96886.0,96885.0,0.1222]
[1736880175243,0.00551046,96886.0,96885.0,0.1222]
[1736880175987,0.00751046,96886.0,96885.0,0.1222]
[1736880177278,0.01051046,96886.0,96885.0,0.1222]
[1736880178302,0.005,96886.0,96885.0,0.13442]
[1736880178864,0.003,96886.0,96885.0,0.13442]
[1736880179271,0.003,96886.0,96885.0,0.1232]
[1736880179481,0.0008534,96887.0,96885.0,0.1232]
[1736880179678,0.0008534,96887.0,96885.0,0.14344788]
[1736880179900,0.0008534,96887.0,96885.0,0.1262]
[1736880180076,0.0008534,96887.0,96885.0,0.1232]
[1736880180291,0.0008534,96887.0,96886.0,0.206428]
[1736880180846,0.0008534,96887.0,96886.0,0.2600343]
[1736880182474,0.0008534,96887.0,96886.0,0.21697322]
[1736880182719,0.0008534,96887.0,96886.0,0.21797322]
[1736880185544,0.0008534,96887.0,96886.0,0.55490014]
[1736880186523,0.09254553,96925.0,96917.0,0.206361]
[1736880186720,0.09254553,96925.0,96916.0,0.047]
[1736880186721,0.00467925,96924.0,96918.0,0.08373178]
[1736880186978,0.00467925,96924.0,96923.0,0.289047]
[1736880187219,0.09254553,96934.0,96923.0,0.289047]
[1736880187408,0.09254553,96934.0,96923.0,0.495395]
[1736880187616,0.206335,96930.0,96923.0,0.0827]
[1736880187747,0.0013487,96926.0,96923.0,0.0827]
[1736880189013,0.0013487,96926.0,96923.0,0.09895553]
[1736880189207,0.0013487,96926.0,96923.0,0.0827]
[1736880189413,0.0013487,96926.0,96923.0,0.0837]
[1736880189848,0.0013487,96926.0,96923.0,0.289049]
[1736880190384,0.0023487,96926.0,96923.0,0.289049]
[1736880190789,0.0013487,96926.0,96923.0,0.289049]
[1736880191318,0.0023487,96926.0,96923.0,0.289049]
[1736880191521,0.0023487,96926.0,96923.0,0.52200645]
[1736880191736,0.0013487,96926.0,96923.0,0.52200645]
[1736880191916,0.0013487,96926.0,96923.0,0.52300645]
[1736880192382,0.0013487,96926.0,96923.0,0.496398]
[1736880192556,0.0013487,96926.0,96923.0,0.498398]
[1736880192737,0.0013487,96926.0,96923.0,0.496398]
[1736880193366,0.0013487,96926.0,96923.0,0.495398]
[1736880193763,0.0023487,96926.0,96923.0,0.495398]
[1736880193975,0.0023487,96926.0,96923.0,0.289049]
[1736880194184,0.0013487,96926.0,96923.0,0.289049]
[1736880195212,0.0013487,96926.0,96923.0,0.495398]
[1736880196332,0.0013487,96926.0,96924.0,0.07326093]
[1736880196480,0.0013487,96926.0,96925.0,0.206345]
[1736880197678,0.0013487,96926.0,96924.0,0.002]
[1736880198403,0.0013487,96926.0,96925.0,0.001]
[1736880198727,0.0013487,96926.0,96925.0,0.207345]
[1736880199289,0.0013487,96926.0,96925.0,0.209345]
[1736880199579,0.0013487,96926.0,96925.0,0.207345]
[1736880199747,0.0013487,96926.0,96925.0,0.206345]
[1736880200105,0.0023487,96926.0,96925.0,0.206345]
[1736880200308,0.0023487,96926.0,96925.0,0.208345]
[1736880200535,0.0013487,96926.0,96925.0,0.208345]
[1736880200736,0.0013487,96926.0,96925.0,0.209345]
[1736880203672,0.206316,96939.0,96925.0,0.209345]
[1736880203878,0.20642321,96939.0,96925.0,0.26021428]
[1736880204108,0.00010721,96939.0,96925.0,0.05386928]
[1736880204375,0.00010721,96939.0,96937.0,0.0456]
[1736880204543,0.00010721,96939.0,96937.0,0.251919]
[1736880204764,0.00010721,96939.0,96938.0,0.02121024]
[1736880205123,0.00210721,96939.0,96938.0,0.22393716]
[1736880205315,0.00210721,96939.0,96938.0,0.22290572]
[1736880205524,0.00510721,96939.0,96938.0,0.32165269]
[1736880205771,0.00210721,96939.0,96938.0,0.32165269]
[1736880206172,0.00310721,96939.0,96938.0,0.32765269]
[1736880206331,0.00210721,96939.0,96938.0,0.32165269]
[1736880206673,0.00310721,96939.0,96938.0,0.32765269]
[1736880206980,0.00110721,96939.0,96938.0,0.30465269]
[1736880207132,0.00110721,96939.0,96938.0,0.20042577]
[1736880207332,0.00196061,96939.0,96938.0,0.20145719]
[1736880207626,0.00196061,96939.0,96938.0,0.1120732]
[1736880208004,0.00196061,96939.0,96938.0,0.1150732]
[1736880208437,0.00196061,96939.0,96938.0,0.22033161]
[1736880208638,0.00196061,96939.0,96938.0,0.21930012]
[1736880212470,0.00196061,96939.0,96938.0,0.21920012]
[1736880212669,0.00196061,96939.0,96938.0,0.29694423]
[1736880216945,0.00196061,96939.0,96938.0,0.30652815]
[1736880217877,0.00196061,96939.0,96938.0,0.56994423]
[1736880218095,0.00196061,96939.0,96938.0,0.71554423]
[1736880218854,0.00196061,96939.0,96938.0,0.71244423]
[1736880219079,0.00096061,96939.0,96938.0,0.71410543]
[1736880219279,0.00196061,96939.0,96938.0,0.72410543]
[1736880219478,0.00196061,96939.0,96938.0,0.71710543]
[1736880219682,0.00196061,96939.0,96938.0,0.71410543]
[1736880219879,0.00296061,96939.0,96938.0,0.72110543]
[1736880220079,0.00196061,96939.0,96938.0,0.71910543]
[1736880220584,0.00296061,96939.0,96938.0,0.73746695]
[1736880220788,0.00196061,96939.0,96938.0,0.73046695]
[1736880221312,0.00196061,96939.0,96938.0,0.50746695]
[1736880221459,0.00096061,96939.0,96938.0,0.60246695]
[1736880221663,0.00096061,96939.0,96938.0,0.62546695]
[1736880221956,0.00096061,96939.0,96938.0,0.52946695]
[1736880222125,0.00096061,96939.0,96938.0,0.62946695]
[1736880222334,0.00096061,96939.0,96938.0,0.63446695]
[1736880222538,0.00096061,96939.0,96938.0,0.62946695]
[1736880222892,0.00096061,96939.0,96938.0,0.63846695]
[1736880223285,0.00096061,96939.0,96938.0,0.73846695]
[1736880229749,0.00096061,96939.0,96938.0,0.63846695]
[1736880230028,0.00096061,96939.0,96938.0,0.53846695]
[1736880230240,0.00096061,96939.0,96938.0,0.03202272]
[1736880230645,0.00096061,96939.0,96938.0,0.0224525]
[1736880231652,0.00096061,96939.0,96938.0,0.0017913]
[1736880231789,0.00096061,96939.0,96938.0,0.00382282]
[1736880231984,0.00096061,96939.0,96938.0,0.00682282]
[1736880233254,0.00096061,96939.0,96938.0,0.02882662]
[1736880238077,0.00096061,96939.0,96938.0,0.00682282]
[1736880238701,0.00096061,96939.0,96938.0,0.51134969]
[1736880238900,0.00096061,96939.0,96938.0,0.51031822]
[1736880239508,0.00096061,96939.0,96938.0,0.50931822]
[1736880239678,0.00096061,96939.0,96938.0,0.50631822]
[1736880239883,0.00096061,96939.0,96938.0,0.61054514]
[1736880240227,0.00196061,96939.0,96938.0,0.61854514]
[1736880240420,0.00196061,96939.0,96938.0,0.7281299]
[1736880241366,0.00196061,96939.0,96938.0,0.8369299]
[1736880241520,0.00196061,96939.0,96938.0,0.7311299]
[1736880242099,0.00096061,96939.0,96938.0,0.52779627]
[1736880242318,0.00196061,96939.0,96938.0,0.25744243]
[1736880242501,0.00196061,96939.0,96938.0,0.25344243]
[1736880242705,0.00096061,96939.0,96938.0,0.10344243]
[1736880242927,0.00196061,96939.0,96938.0,0.12371601]
[1736880243100,0.00096061,96939.0,96938.0,0.0017913]
[1736880243630,0.00196061,96939.0,96938.0,0.0097913]
[1736880243830,0.00096061,96939.0,96938.0,0.0047913]
[1736880245053,0.00096061,96939.0,96938.0,0.0037913]
[1736880245457,0.00196061,96939.0,96938.0,0.0017913]
[1736880245688,0.00196061,96939.0,96938.0,0.0027913]
[1736880246049,0.00096061,96939.0,96938.0,0.0017913]
[1736880246259,0.00096061,96939.0,96938.0,0.0027913]
[1736880246874,0.00396061,96939.0,96938.0,0.0027913]
[1736880250845,0.00396061,96939.0,96938.0,0.0026913]
[1736880252702,0.10818753,96939.0,96938.0,0.0026913]
[1736880253571,0.01008061,96939.0,96938.0,0.0026913]
[1736880253772,0.00396061,96939.0,96938.0,0.0026913]
[1736880254390,0.00096061,96939.0,96938.0,0.0026913]
[1736880254852,0.00396061,96939.0,96938.0,0.0016913]
[1736880255202,0.00096061,96939.0,96938.0,0.0016913]
[1736880255405,0.00296061,96939.0,96938.0,0.04413744]
[1736880255601,0.00396061,96939.0,96938.0,0.04516886]
[1736880255801,0.00296061,96939.0,96938.0,0.0016913]
[1736880256228,0.00596061,96939.0,96938.0,0.0016913]
[1736880256425,0.00096061,96939.0,96938.0,0.0016913]
[1736880256836,0.00096061,96939.0,96938.0,0.00272278]
[1736880257660,0.00296061,96939.0,96938.0,0.00272278]
[1736880257912,0.00596061,96939.0,96938.0,0.06793961]
[1736880258079,0.00296061,96939.0,96938.0,0.06793961]
[1736880258309,0.00096061,96939.0,96938.0,0.06793961]
[1736880258487,0.00096061,96939.0,96938.0,0.00372278]
[1736880262819,0.00096061,96939.0,96938.0,0.0026913]
[1736880264009,0.10518753,96939.0,96938.0,0.0026913]
[1736880264209,0.10518753,96939.0,96938.0,0.0016913]
[1736880265327,0.11018753,96939.0,96938.0,0.0016913]
[1736880265710,0.11018753,96939.0,96938.0,0.0026913]
[1736880265711,0.11318753,96939.0,96938.0,0.0026913]
[1736880265958,0.11018753,96939.0,96938.0,0.0016913]
[1736880266955,0.10818753,96939.0,96938.0,0.0016913]
[1736880267133,0.11218753,96939.0,96938.0,0.0016913]
[1736880267441,0.76108753,96939.0,96938.0,0.0016913]
[1736880267641,0.76320753,96939.0,96938.0,0.0016913]
[1736880267846,0.76620753,96939.0,96938.0,0.0026913]
[1736880268043,0.76920753,96939.0,96938.0,0.0026913]
[1736880268325,0.86320753,96939.0,96938.0,0.0016913]
[1736880268548,0.86320753,96939.0,96938.0,0.0026913]
[1736880269179,0.86620753,96939.0,96938.0,0.0036913]
[1736880269513,0.86620753,96939.0,96938.0,3e-07]
[1736880269514,0.91260753,96939.0,96938.0,3e-07]
[1736880269669,1.05147275,96939.0,96938.0,0.0010003]
[1736880269894,1.05447275,96939.0,96938.0,3e-07]
[1736880270618,1.09976308,96939.0,96938.0,3e-07]
[1736880270756,0.206334,96930.0,96891.0,0.0798]
[1736880270961,0.12294736,96910.0,96891.0,0.286216]
[1736880271162,0.00612,96909.0,96891.0,0.0798]
[1736880271478,0.00612,96908.0,96892.0,0.206415]
[1736880271680,0.20635,96923.0,96893.0,0.10525891]
[1736880271906,0.3298,96925.0,96891.0,0.0798]
[1736880271907,0.12294736,96910.0,96891.0,0.0798]
[1736880272072,0.10422692,96909.0,96891.0,0.0798]
[1736880272275,0.31360592,96909.0,96891.0,0.0808]
[1736880272484,0.31360592,96909.0,96892.0,0.206415]
[1736880272485,0.206394,96902.0,96892.0,0.206415]
[1736880272949,0.206394,96902.0,96893.0,0.001]
[1736880273153,0.00612,96905.0,96892.0,0.206415]
[1736880273727,0.206398,96900.0,96891.0,0.0802948]
[1736880274131,0.206407,96896.0,96891.0,0.0802948]
[1736880274450,0.206398,96900.0,96891.0,0.0802948]
[1736880274814,0.207398,96900.0,96891.0,0.0802948]
[1736880275233,0.206406,96897.0,96891.0,0.0802948]
[1736880275592,0.001,96900.0,96891.0,0.0004948]
[1736880275750,0.206415,96892.0,96891.0,0.0004948]
[1736880278110,0.208415,96892.0,96891.0,0.0004948]
[1736880278426,0.208415,96892.0,96891.0,0.0022861]
[1736880278922,0.210415,96892.0,96891.0,0.0022861]
[1736880279163,0.208415,96892.0,96891.0,0.0022861]
[1736880279485,0.213415,96892.0,96891.0,0.0022861]
[1736880281777,0.31764192,96892.0,96891.0,0.0022861]
[1736880283662,0.007,96892.0,96891.0,0.0022861]
[1736880284440,0.007,96892.0,96891.0,0.0820861]
[1736880284648,0.005,96892.0,96891.0,0.0820861]
[1736880285011,0.002,96892.0,96891.0,0.0820861]
[1736880285493,0.001,96892.0,96891.0,0.0820861]
[1736880285688,0.206384,96907.0,96891.0,0.0820861]
[1736880285918,0.206384,96907.0,96891.0,0.10429257]
[1736880286339,0.206384,96907.0,96896.0,0.206406]
[1736880286662,0.206377,96910.0,96891.0,0.10429257]
[1736880286822,0.206377,96910.0,96901.0,0.206395]
[1736880287425,0.004,96907.0,96898.0,0.206402]
[1736880287663,0.20639,96904.0,96891.0,0.10229257]
[1736880287821,0.206412,96894.0,96891.0,0.0820861]
[1736880288021,0.206412,96894.0,96891.0,0.0022861]
[1736880288221,0.412824,96894.0,96891.0,0.0022861]
[1736880289216,0.206415,96892.0,96891.0,0.0022861]
[1736880289335,0.31064192,96892.0,96891.0,0.0022861]
[1736880290530,0.31664192,96892.0,96891.0,0.0032861]
[1736880290677,0.31664192,96892.0,96891.0,0.0042861]
[1736880291083,0.31664192,96892.0,96891.0,0.0032861]
[1736880291610,0.31964192,96892.0,96891.0,0.0032861]
[1736880296897,0.31951776,96892.0,96891.0,0.0032861]
[1736880298912,0.009,96892.0,96891.0,0.0032861]
[1736880300923,0.009,96892.0,96891.0,0.0792861]
[1736880301618,0.11022692,96892.0,96891.0,0.0032861]
[1736880301928,0.12041114,96892.0,96891.0,0.0052861]
[1736880302123,0.60021114,96892.0,96891.0,0.0052861]
[1736880302325,0.66931114,96892.0,96891.0,0.0052861]
[1736880302526,0.66331114,96892.0,96891.0,0.0042861]
[1736880302745,0.66331114,96892.0,96891.0,0.0082861]
[1736880303153,0.66331114,96892.0,96891.0,0.0042861]
[1736880303352,0.66331114,96892.0,96891.0,0.0022861]
[1736880303582,0.67031114,96892.0,96891.0,0.0032861]
[1736880303702,0.66431114,96892.0,96891.0,0.0022861]
[1736880304103,0.67231114,96892.0,96891.0,0.0032861]
[1736880304395,0.67231114,96892.0,96891.0,0.0042861]
[1736880304396,0.67831114,96892.0,96891.0,0.0042861]
[1736880304977,0.60321114,96892.0,96891.0,0.0032861]
[1736880305178,0.60821114,96892.0,96891.0,0.0042861]
[1736880306074,0.59921114,96892.0,96891.0,0.0032861]
[1736880306451,0.60821114,96892.0,96891.0,0.0042861]
[1736880311783,0.71433114,96892.0,96891.0,0.0042861]
[1736880312947,0.61433114,96892.0,96891.0,0.0042861]
[1736880313660,0.71433114,96892.0,96891.0,0.0042861]
[1736880313863,0.60821114,96892.0,96891.0,0.0042861]
[1736880314160,0.45821114,96892.0,96891.0,0.0042861]
[1736880314373,0.44802692,96892.0,96891.0,0.0042861]
[1736880314522,0.49510714,96892.0,96891.0,0.0042861]
[1736880314738,0.45414692,96892.0,96891.0,0.0042861]
[1736880315369,0.60414692,96892.0,96891.0,0.0042861]
[1736880315790,0.60500052,96892.0,96891.0,0.0042861]
[1736880319606,0.44888052,96892.0,96891.0,0.0042861]
[1736880319813,0.3446536,96892.0,96891.0,0.0860861]
[1736880320638,0.44888052,96892.0,96891.0,0.0860861]
[1736880320841,0.43988052,96892.0,96891.0,0.0032861]
[1736880321048,0.59519968,96892.0,96891.0,0.0022861]
[1736880321252,0.60131968,96892.0,96891.0,0.0022861]
[1736880322095,0.59300052,96892.0,96891.0,0.0022861]
[1736880322298,0.59188052,96892.0,96891.0,0.0032861]
[1736880322471,0.59600052,96892.0,96891.0,0.0032861]
[1736880322676,0.60500052,96892.0,96891.0,0.0042861]
[1736880322880,0.59100052,96892.0,96891.0,0.0022861]
[1736880323083,0.59600052,96892.0,96891.0,0.0032861]
[1736880323248,0.60400052,96892.0,96891.0,0.0042861]
[1736880323448,0.59600052,96892.0,96891.0,0.0032861]
[1736880323678,0.44100052,96892.0,96891.0,0.0022861]
[1736880324280,0.44900052,96892.0,96891.0,0.0032861]
[1736880324549,0.45300052,96892.0,96891.0,0.0032861]
[1736880327995,0.60300052,96892.0,96891.0,0.0032861]
[1736880329281,0.59688052,96892.0,96891.0,0.0032861]
[1736880329481,0.60300052,96892.0,96891.0,0.0032861]
[1736880333414,0.6957371,96892.0,96891.0,0.0032861]
[1736880334182,0.60300052,96892.0,96891.0,0.0032861]
[1736880334554,0.73570368,96892.0,96891.0,0.0032861]
[1736880334727,0.7028,96889.0,96888.0,1.7e-07]
[1736880334953,0.1,96880.0,96879.0,0.0235661]
[1736880335084,0.37722692,96880.0,96879.0,0.02371473]
[1736880335488,0.47722692,96880.0,96879.0,0.02371473]
[1736880336534,0.47722692,96880.0,96879.0,0.02571473]
[1736880336535,0.49122692,96880.0,96879.0,0.02571473]
[1736880337343,0.49284026,96880.0,96879.0,0.02471473]
[1736880337545,0.51385081,96880.0,96879.0,0.02471473]
[1736880337719,0.1,96872.0,96871.0,4.3e-07]
[1736880337921,0.47422692,96872.0,96871.0,4.3e-07]
[1736880338246,0.35,96870.0,96869.0,5.5e-07]
[1736880338411,0.45422692,96870.0,96869.0,5.5e-07]
[1736880339030,0.35,96866.0,96865.0,7.8e-07]
[1736880339234,0.46034692,96866.0,96865.0,7.8e-07]
[1736880339451,0.48130714,96866.0,96865.0,7.8e-07]
[1736880339830,0.48130714,96866.0,96841.0,0.08359151]
[1736880339831,0.356479,96862.0,96861.0,0.0275292]
[1736880340033,0.89050592,96862.0,96861.0,0.0275292]
[1736880340628,0.89050592,96862.0,96858.0,3e-08]
[1736880340629,0.625585,96859.0,96858.0,3e-08]
[1736880340832,0.625585,96859.0,96841.0,0.00179151]
[1736880340833,0.356515,96845.0,96841.0,0.00179151]
[1736880341086,0.48074192,96845.0,96841.0,0.00179151]
[1736880341563,0.46074192,96845.0,96841.0,0.00179151]
[1736880342178,0.46074192,96845.0,96844.0,0.0021862]
[1736880342372,0.70052097,96845.0,96844.0,0.0021862]
[1736880342841,0.70152097,96845.0,96844.0,0.0021862]
[1736880343048,0.46974192,96845.0,96844.0,0.0021862]
[1736880343249,0.47674192,96845.0,96844.0,0.0021862]
[1736880343960,0.48720649,96845.0,96844.0,0.0021862]
[1736880344192,0.47820649,96845.0,96844.0,0.0021862]
[1736880344813,0.48432649,96845.0,96844.0,0.0021862]
[1736880344948,0.47732649,96845.0,96844.0,0.0021862]
[1736880345572,0.48020649,96845.0,96844.0,0.0021862]
[1736880345777,0.32120649,96845.0,96844.0,0.0021862]
[1736880345980,0.66412649,96845.0,96844.0,0.0021862]
[1736880346231,0.67312649,96845.0,96844.0,0.0021862]
[1736880346399,0.82312649,96845.0,96844.0,0.0021862]
[1736880346744,0.81612649,96845.0,96844.0,0.0021862]
[1736880346915,0.81412649,96845.0,96844.0,0.0021862]
[1736880347328,0.82312649,96845.0,96844.0,0.0021862]
[1736880348099,0.81612649,96845.0,96844.0,0.0021862]
[1736880348507,0.82212649,96845.0,96844.0,0.0021862]
[1736880351848,0.67212649,96845.0,96844.0,0.0021862]
[1736880352354,0.66600649,96845.0,96844.0,0.0021862]
[1736880352564,0.67212649,96845.0,96844.0,0.0021862]
[1736880356117,0.82212649,96845.0,96844.0,0.0020862]
[1736880357534,0.82212649,96845.0,96844.0,0.0019862]
[1736880358544,0.82212649,96845.0,96844.0,0.0018862]
[1736880358742,0.94512649,96845.0,96844.0,0.0018862]
[1736880358983,0.82212649,96845.0,96844.0,0.0018862]
[1736880359359,0.82212649,96845.0,96844.0,0.0017862]
[1736880359984,0.94512649,96845.0,96844.0,0.0017862]
[1736880360196,0.1,96835.0,96834.0,4.4e-07]
[1736880360402,0.15,96830.0,96825.0,0.03145087]
[1736880360599,0.58402692,96826.0,96825.0,0.03159962]
[1736880360822,0.79058292,96826.0,96825.0,0.03159962]
[1736880361421,0.79058292,96826.0,96825.0,0.03149962]
[1736880361882,0.64670292,96826.0,96825.0,0.10759962]
[1736880362167,0.64670292,96826.0,96825.0,0.15669962]
[1736880362344,0.65270292,96826.0,96825.0,0.15659962]
[1736880362953,0.66170292,96826.0,96825.0,0.15659962]
[1736880363765,0.3358,96826.0,96825.0,0.15659962]
[1736880363933,0.006,96826.0,96825.0,0.15659962]
[1736880364124,0.3298,96849.0,96828.0,0.0491]
[1736880364330,0.10422692,96848.0,96844.0,0.0761]
[1736880364530,0.00179382,96845.0,96844.0,0.0761]
[1736880366115,0.33359382,96845.0,96844.0,0.0761]
[1736880366461,0.33659382,96845.0,96844.0,0.0761]
[1736880367124,0.33359382,96845.0,96844.0,0.0761]
[1736880367582,0.33359382,96845.0,96844.0,0.0771]
[1736880367779,0.33159382,96845.0,96844.0,0.0771]
[1736880368202,0.33159382,96845.0,96844.0,0.0781]
[1736880368606,0.33159382,96845.0,96844.0,0.0771]
[1736880369050,0.33259382,96845.0,96844.0,0.0771]
[1736880369429,0.33259382,96845.0,96844.0,0.0761]
[1736880369634,0.33559382,96845.0,96844.0,0.0761]
[1736880370049,0.33259382,96845.0,96844.0,0.0761]
[1736880370257,0.43982074,96845.0,96844.0,0.0761]
[1736880370427,0.206531,96838.0,96832.0,0.0815]
[1736880370645,0.43982074,96845.0,96832.0,0.0815]
[1736880370849,0.20654,96834.0,96832.0,0.0815]
[1736880371046,0.206532,96837.0,96832.0,0.0815]
[1736880371649,0.206541,96833.0,96832.0,0.0815]
[1736880372028,0.206541,96833.0,96806.0,0.03332022]
[1736880372029,0.206556,96826.0,96823.0,0.0815]
[1736880372176,0.31078292,96826.0,96823.0,0.0815]
[1736880372763,0.31078292,96826.0,96806.0,0.23991822]
[1736880373091,0.31078292,96826.0,96813.0,0.0815]
[1736880373873,0.31878292,96826.0,96813.0,0.0815]
[1736880374485,0.32178292,96826.0,96813.0,0.0815]
[1736880375647,0.32790292,96826.0,96813.0,0.288082]
[1736880375856,0.65770292,96826.0,96813.0,0.288082]
[1736880376082,0.65770292,96826.0,96813.0,0.0815]
[1736880376237,0.67800994,96826.0,96813.0,0.0815]
[1736880377716,0.65770292,96826.0,96813.0,0.0815]
[1736880380254,0.80770292,96826.0,96813.0,0.0815]
[1736880382258,0.3408,96826.0,96825.0,0.16265382]
[1736880382488,0.011,96826.0,96825.0,0.16265382]
[1736880382698,0.0925983,96828.0,96825.0,0.23103552]
[1736880382826,0.0925983,96828.0,96826.0,0.2315]
[1736880383041,0.0925983,96847.0,96829.0,0.413098]
[1736880383247,0.0925983,96847.0,96832.0,0.0489]
[1736880383426,0.0925983,96847.0,96834.0,0.0815]
[1736880383642,0.0925983,96847.0,96834.0,0.08253257]
[1736880383840,0.3298,96849.0,96839.0,0.206527]
[1736880384432,0.3298,96849.0,96842.0,0.41304]
[1736880384865,0.00279382,96845.0,96842.0,0.206519]
[1736880385677,0.00379382,96845.0,96842.0,0.41304]
[1736880385885,0.00379382,96845.0,96843.0,0.0771]
[1736880385886,0.00179382,96845.0,96843.0,0.0771]
[1736880386092,0.00179382,96845.0,96844.0,0.206517]
[1736880386296,0.00279382,96845.0,96844.0,0.206517]
[1736880386859,0.00279382,96845.0,96844.0,0.20754948]
[1736880387077,0.00179382,96845.0,96844.0,0.206517]
[1736880387320,0.00179382,96845.0,96844.0,0.20854947]
[1736880387877,0.00179382,96845.0,96844.0,0.207517]
[1736880388081,0.00179382,96845.0,96844.0,0.209517]
[1736880388602,0.00179382,96845.0,96844.0,0.208517]
[1736880388811,0.00179382,96845.0,96844.0,0.35070378]
[1736880389021,0.00179382,96845.0,96844.0,0.34967131]
[1736880393049,0.00179382,96845.0,96844.0,0.37035589]
[1736880394851,0.00179382,96845.0,96844.0,0.339217]
[1736880396679,0.00179382,96845.0,96844.0,0.71644392]
[1736880397532,0.00179382,96845.0,96844.0,0.71444392]
[1736880397755,0.00179382,96845.0,96844.0,0.71944392]
[1736880398177,0.00179382,96845.0,96844.0,0.71444392]
[1736880398371,0.00179382,96845.0,96844.0,0.81867084]
[1736880398583,0.00179382,96845.0,96844.0,0.82367084]
[1736880398790,0.00179382,96845.0,96844.0,0.81967084]
[1736880399001,0.00179382,96845.0,96844.0,0.71967084]
[1736880399216,0.00279382,96845.0,96844.0,0.82867084]
[1736880400210,0.206421,96890.0,96844.0,0.82867084]
[1736880400211,0.3298,96891.0,96868.0,0.15]
[1736880400417,0.3306536,96892.0,96888.0,0.206423]
[1736880400828,0.3306536,96892.0,96888.0,0.412846]
[1736880401035,0.0008536,96892.0,96890.0,0.206419]
[1736880401236,0.0008536,96892.0,96891.0,0.07813194]
[1736880401686,0.0038536,96892.0,96891.0,0.07813194]
[1736880401906,0.0038536,96892.0,96891.0,0.16283203]
[1736880402129,0.0008536,96892.0,96891.0,0.16283203]
[1736880402331,0.0008536,96892.0,96891.0,0.33401112]
[1736880402481,0.0008536,96892.0,96891.0,0.33297918]
[1736880402659,0.0008536,96892.0,96891.0,0.5602061]
[1736880403069,0.0008536,96892.0,96891.0,0.5652061]
[1736880403272,0.0008536,96892.0,96891.0,0.5602061]
[1736880403674,0.0008536,96892.0,96891.0,0.5682061]
[1736880404466,0.0008536,96892.0,96891.0,0.5702061]
[1736880404899,0.0008536,96892.0,96891.0,0.5682061]
[1736880405194,0.0008536,96892.0,96891.0,0.5712061]
[1736880405482,0.0008536,96892.0,96891.0,0.6712061]
[1736880410389,0.22250596,96934.0,96932.0,0.20633]
[1736880410390,0.34597896,96934.0,96932.0,0.20633]
[1736880410638,0.01667409,96934.0,96933.0,0.20585844]
[1736880410901,0.00049513,96934.0,96933.0,0.20585832]
[1736880411555,0.00049513,96934.0,96933.0,0.30585832]
[1736880411756,0.00049513,96934.0,96933.0,0.30482692]
[1736880411905,0.00049513,96934.0,96933.0,0.40172991]
[1736880412395,0.00049513,96934.0,96933.0,0.42206929]
[1736880412923,0.00049513,96934.0,96933.0,0.42606929]
[1736880413253,0.00049513,96934.0,96933.0,0.42706929]
[1736880415114,0.00049513,96934.0,96933.0,0.43755193]
[1736880420424,0.00049513,96934.0,96933.0,0.68755193]
[1736880420639,1.3e-07,96934.0,96933.0,0.72775193]
[1736880420847,1.3e-07,96934.0,96933.0,0.73575193]
[1736880421058,0.0008534,96939.0,96938.0,0.4775]
[1736880421266,0.0010019,96939.0,96938.0,0.71503384]
[1736880421482,0.0010019,96939.0,96938.0,0.92135084]
[1736880421695,0.0008536,96967.0,96948.0,0.35]
[1736880421913,0.0008536,96967.0,96966.0,0.3209]
[1736880422130,0.0008536,96984.0,96978.0,0.1]
[1736880422355,0.0008536,96984.0,96983.0,0.206221]
[1736880422568,0.0008536,96984.0,96983.0,0.20725195]
[1736880422803,0.00100223,96984.0,96983.0,0.20725195]
[1736880422994,0.00100223,96984.0,96983.0,0.206221]
[1736880423400,0.00100223,96984.0,96983.0,0.211221]
[1736880423908,0.00100223,96984.0,96983.0,0.213221]
[1736880427447,0.00100223,96984.0,96983.0,0.211221]
[1736880427909,0.00100223,96984.0,96983.0,0.212221]
[1736880428054,0.00100223,96984.0,96983.0,0.006]
[1736880428940,0.00100223,96984.0,96983.0,0.001]
[1736880429389,0.00100223,96984.0,96983.0,0.004]
[1736880429584,0.00100223,96984.0,96981.0,0.206224]
[1736880429958,0.00200223,96984.0,96981.0,0.206224]
[1736880430546,0.00100223,96984.0,96981.0,0.412449]
[1736880430743,0.00200223,96984.0,96983.0,0.206221]
[1736880431537,0.00100223,96984.0,96983.0,0.206221]
[1736880432707,0.00200223,96984.0,96983.0,0.206221]
[1736880432900,0.00200223,96984.0,96983.0,0.210221]
[1736880433112,0.00200223,96984.0,96983.0,0.22179239]